bitfinex-derivatives/quotes_ETHF0:USTF0_20260119
["timestamp","ask_amount","ask_price","bid_price","bid_amount"]
[1768844333766,1.21041274,3222.5,3221.2,0.13183314]
[1768844333972,0.8717786,3222.4,3221.2,0.13183314]
[1768844334176,0.8717786,3222.3,3221.2,0.13183314]
[1768844340584,0.8717786,3222.3,3221.0,0.0032145]
[1768844340585,1.2857543,3222.0,3221.0,0.0032145]
[1768844346088,1.2857543,3222.2,3221.0,0.13510482]
[1768844346287,0.87124765,3222.1,3221.0,0.13510482]
[1768844346489,1.2857543,3222.2,3221.0,0.13510482]
[1768844346688,0.87119525,3222.1,3221.0,0.13510482]
[1768844346887,1.2857543,3222.2,3221.0,0.13510482]
[1768844347086,0.87123941,3222.1,3221.0,0.13510482]
[1768844347285,1.2857543,3222.2,3221.0,0.13510482]
[1768844347486,0.87119402,3222.1,3221.0,0.13510482]
[1768844347686,1.2857543,3222.2,3221.0,0.13510482]
[1768844347882,0.87119402,3222.1,3221.0,0.13510482]
[1768844348082,1.2857543,3222.2,3221.0,0.13510482]
[1768844348284,0.87119418,3222.1,3221.0,0.13510482]
[1768844348581,1.2857543,3222.2,3221.0,0.13510482]
[1768844348785,0.87115617,3222.1,3221.0,0.13510482]
[1768844348981,1.2857543,3222.2,3221.0,0.13510482]
[1768844349182,0.87115617,3222.1,3221.0,0.13510482]
[1768844349384,1.2857543,3222.2,3221.0,0.13510482]
[1768844349885,0.8711235,3222.1,3221.0,0.13510482]
[1768844350092,1.2857543,3222.2,3221.0,0.13510482]
[1768844350276,0.8711235,3222.1,3221.0,0.13510482]
[1768844350477,1.2857543,3222.2,3221.0,0.13510482]
[1768844350682,0.87109567,3222.1,3221.0,0.13510482]
[1768844350883,1.2857543,3222.2,3221.0,0.13510482]
[1768844353595,0.15524,3222.5,3221.0,0.13510482]
[1768844353781,1.2857543,3222.2,3221.0,0.13510482]
[1768844361495,0.87074422,3222.1,3221.0,0.13510482]
[1768844361696,1.2857543,3222.2,3221.0,0.13510482]
[1768844361897,0.87074417,3222.1,3221.0,0.13510482]
[1768844362106,1.2857543,3222.2,3221.0,0.13510482]
[1768844362293,0.87076589,3222.1,3221.0,0.13510482]
[1768844362494,1.2857543,3222.0,3221.0,0.13510482]
[1768844362799,1.2857543,3222.2,3221.0,0.13510482]
[1768844362997,0.87080173,3222.1,3221.0,0.13510482]
[1768844363204,1.2857543,3222.2,3221.0,0.13510482]
[1768844363501,0.87080983,3222.1,3221.0,0.13510482]
[1768844363703,1.2857543,3222.2,3221.0,0.13510482]
[1768844363902,0.87087672,3222.1,3221.0,0.13510482]
[1768844364201,1.2857543,3222.2,3221.0,0.13510482]
[1768844364404,0.87098646,3222.1,3221.0,0.13510482]
[1768844364704,1.2857543,3222.2,3221.0,0.13510482]
[1768844364907,0.87098647,3222.1,3221.0,0.13510482]
[1768844365102,1.2857543,3222.2,3221.0,0.13510482]
[1768844365292,0.87098667,3222.1,3221.0,0.13510482]
[1768844365496,1.2857543,3222.2,3221.0,0.13510482]
[1768844365695,0.87105382,3222.1,3221.0,0.13510482]
[1768844365897,1.2857543,3222.2,3221.0,0.13510482]
[1768844366097,0.87105364,3222.1,3221.0,0.13510482]
[1768844366297,1.2857543,3222.4,3221.0,0.13510482]
[1768844366606,1.20963116,3222.3,3221.1,1.2857543]
[1768844366806,0.87113461,3222.2,3221.1,1.2857543]
[1768844367107,0.87113461,3222.1,3221.1,1.2857543]
[1768844367297,1.2857543,3222.4,3221.1,1.2857543]
[1768844367498,1.20977674,3222.3,3221.1,1.2857543]
[1768844367698,1.20977674,3222.2,3221.1,1.2857543]
[1768844367899,0.87123931,3222.1,3221.1,1.2857543]
[1768844368107,1.2857543,3222.4,3221.1,1.2857543]
[1768844368307,1.20977628,3222.3,3221.1,1.2857543]
[1768844368496,1.20977628,3222.2,3221.1,1.2857543]
[1768844368701,0.87123898,3222.1,3221.1,1.2857543]
[1768844368902,1.2857543,3222.4,3221.1,1.42945874]
[1768844369101,1.20997889,3222.3,3221.1,1.42945874]
[1768844369300,1.20997889,3222.2,3221.1,1.42945874]
[1768844369501,0.87138446,3222.1,3221.1,1.42945874]
[1768844369707,0.87138446,3222.0,3221.1,1.42945874]
[1768844369902,1.2857543,3222.4,3221.1,1.42945874]
[1768844370101,1.21043999,3222.3,3221.1,1.42945874]
[1768844370300,1.21043999,3222.2,3221.1,1.42945874]
[1768844370503,0.87171424,3222.1,3221.2,0.14370444]
[1768844370709,0.15524,3222.5,3221.3,1.42945874]
[1768844370901,1.21036613,3222.4,3221.3,1.42945874]
[1768844371103,1.21036613,3222.3,3221.3,1.42945874]
[1768844371306,0.87166101,3222.2,3221.3,1.42945874]
[1768844371506,0.87166101,3222.1,3221.3,1.42945874]
[1768844371710,0.15524,3222.5,3221.3,1.42945874]
[1768844371896,1.20997536,3222.4,3221.3,1.42945874]
[1768844372100,1.20997536,3222.3,3221.3,1.42945874]
[1768844372301,0.87129045,3222.2,3221.4,0.14370444]
[1768844372494,0.87129045,3222.1,3221.4,0.14370444]
[1768844372708,0.15524,3222.5,3221.4,0.14370444]
[1768844372908,1.20971527,3222.4,3221.4,0.14370444]
[1768844373109,1.20971527,3222.3,3221.4,0.14370444]
[1768844373310,0.87110301,3222.2,3221.4,0.14370444]
[1768844373507,0.87110301,3222.1,3221.4,0.14370444]
[1768844373697,0.15524,3222.5,3221.4,0.14370444]
[1768844373897,1.20872139,3222.4,3221.4,0.14370444]
[1768844374099,1.20872139,3222.3,3221.4,0.14370444]
[1768844374302,0.15524,3222.5,3221.4,0.14370444]
[1768844374303,0.87039773,3222.2,3221.4,0.14370444]
[1768844374508,0.15524,3222.5,3221.4,0.14370444]
[1768844374709,1.20809032,3222.4,3221.4,0.14370444]
[1768844374910,1.20809032,3222.3,3221.4,0.14370444]
[1768844375109,0.15524,3222.5,3221.4,0.14370444]
[1768844375110,0.86993697,3222.2,3221.4,0.14370444]
[1768844375410,0.15524,3222.5,3221.4,0.14370444]
[1768844375606,1.20763299,3222.4,3221.4,0.14370444]
[1768844375806,1.20763299,3222.3,3221.4,0.14370444]
[1768844376008,0.86960346,3222.2,3221.4,0.14370444]
[1768844376209,0.15524,3222.5,3221.4,0.14370444]
[1768844376413,1.2078434,3222.4,3221.4,0.14370444]
[1768844376610,1.2078434,3222.3,3221.4,0.14370444]
[1768844376811,0.86975498,3222.2,3221.4,0.14370444]
[1768844377012,0.15524,3222.5,3221.4,0.14370444]
[1768844377217,1.20778371,3222.4,3221.4,0.14370444]
[1768844377514,1.20778371,3222.3,3221.4,0.14370444]
[1768844377713,0.86971181,3222.2,3221.4,0.14370444]
[1768844377909,0.15524,3222.5,3221.4,0.14370444]
[1768844378211,1.20824331,3222.4,3221.5,1.42945874]
[1768844378418,0.87005268,3222.3,3221.5,1.42945874]
[1768844378616,1.735,3222.7,3221.5,1.42945874]
[1768844378819,1.20831986,3222.6,3221.5,1.42945874]
[1768844379117,1.20831986,3222.5,3221.5,1.42945874]
[1768844379415,1.20831986,3222.4,3221.5,1.42945874]
[1768844379615,0.87010549,3222.3,3221.5,1.42945874]
[1768844379807,1.735,3222.7,3221.5,1.42945874]
[1768844380014,1.20725597,3222.6,3221.5,1.42945874]
[1768844380325,1.20725597,3222.5,3221.5,1.42945874]
[1768844380625,1.20725597,3222.4,3221.5,1.42945874]
[1768844380826,0.86933601,3222.3,3221.5,1.42945874]
[1768844381020,2.9576052,3222.9,3221.5,1.42945874]
[1768844381214,2.94221371,3222.8,3221.5,1.42945874]
[1768844381418,1.20721371,3222.7,3221.5,1.42945874]
[1768844381618,1.20721371,3222.6,3221.5,1.42945874]
[1768844381819,1.20721371,3222.5,3221.5,1.42945874]
[1768844382019,0.86930491,3222.4,3221.5,1.42945874]
[1768844382220,0.86930491,3222.3,3221.5,1.42945874]
[1768844382420,1.735,3222.8,3221.5,1.42945874]
[1768844382620,1.20707008,3222.7,3221.5,1.42945874]
[1768844382820,1.20707008,3222.6,3221.6,0.13605682]
[1768844383025,1.20707008,3222.5,3221.6,0.13605682]
[1768844383324,0.86920039,3222.4,3221.6,0.13605682]
[1768844383522,1.735,3222.8,3221.6,0.13605682]
[1768844383828,1.20700833,3222.7,3221.6,0.13605682]
[1768844384027,1.20700833,3222.6,3221.6,0.13605682]
[1768844384227,1.20700833,3222.5,3221.6,0.13605682]
[1768844384415,0.86915561,3222.4,3221.7,1.2857543]
[1768844384620,4.6926052,3222.9,3221.6,0.13605682]
[1768844384819,1.2071826,3222.8,3221.6,0.13605682]
[1768844385027,1.2071826,3222.7,3221.6,0.13605682]
[1768844385229,1.2071826,3222.6,3221.6,0.13605682]
[1768844385430,1.2071826,3222.5,3221.6,0.13605682]
[1768844385627,0.86928081,3222.4,3221.6,0.13605682]
[1768844385927,4.6926052,3222.9,3221.6,0.13605682]
[1768844386129,1.2070634,3222.8,3221.6,0.13605682]
[1768844386327,1.2070634,3222.7,3221.6,0.13605682]
[1768844386528,1.2070634,3222.6,3221.6,0.13605682]
[1768844386728,1.2070634,3222.5,3221.6,0.13605682]
[1768844386931,0.86919472,3222.4,3221.6,0.13605682]
[1768844387121,4.6926052,3222.9,3221.6,0.13605682]
[1768844387323,1.20702471,3222.8,3221.6,0.13605682]
[1768844387522,1.20702471,3222.7,3221.6,0.13605682]
[1768844387834,1.20702471,3222.6,3221.6,0.13605682]
[1768844388025,1.20702471,3222.5,3221.6,0.13605682]
[1768844388226,0.86916665,3222.4,3221.6,0.13605682]
[1768844388530,4.6926052,3222.9,3221.6,0.13605682]
[1768844388724,1.20980094,3222.8,3221.6,0.13605682]
[1768844388932,1.20980094,3222.7,3221.6,0.13605682]
[1768844389230,1.20980094,3222.6,3221.6,0.13605682]
[1768844389425,1.20980094,3222.5,3221.6,0.13605682]
[1768844389626,0.87198843,3222.4,3221.6,0.13605682]
[1768844389833,3.4068509,3222.9,3221.6,0.13605682]
[1768844390129,1.20971369,3222.8,3221.6,0.13605682]
[1768844390331,1.20971369,3222.7,3221.6,0.13605682]
[1768844390631,1.20971369,3222.6,3221.6,0.13605682]
[1768844390830,1.20971369,3222.5,3221.6,0.13605682]
[1768844391134,0.87192347,3222.4,3221.6,0.13605682]
[1768844391332,3.4068509,3222.9,3221.6,0.13605682]
[1768844391532,1.20843012,3222.8,3221.6,0.13605682]
[1768844391837,1.20841929,3222.7,3221.6,0.13605682]
[1768844392129,1.20841929,3222.6,3221.6,0.13605682]
[1768844392330,1.20841929,3222.5,3221.6,0.13605682]
[1768844392537,0.87099992,3222.4,3221.6,0.13605682]
[1768844392738,3.4068509,3222.9,3221.6,0.13605682]
[1768844392929,1.20838491,3222.8,3221.6,0.13605682]
[1768844393130,1.20838491,3222.7,3221.6,0.13605682]
[1768844393431,1.20838491,3222.6,3221.6,0.13605682]
[1768844393626,1.20838491,3222.5,3221.6,0.13605682]
[1768844393831,0.87096719,3222.4,3221.6,0.13605682]
[1768844394029,3.4068509,3222.9,3221.6,0.13605682]
[1768844394230,1.20837373,3222.8,3221.6,0.13605682]
[1768844394529,1.20837373,3222.7,3221.6,0.13605682]
[1768844394729,0.87095898,3222.6,3221.6,0.13605682]
[1768844394931,1.2082847,3222.5,3221.6,0.13605682]
[1768844395132,0.87095898,3222.4,3221.6,0.13605682]
[1768844395432,3.4068509,3222.9,3221.6,0.13605682]
[1768844395627,1.2082056,3222.8,3221.6,0.13605682]
[1768844395928,1.2082056,3222.7,3221.6,0.13605682]
[1768844396127,1.2082056,3222.6,3221.6,0.13605682]
[1768844396328,1.2082056,3222.5,3221.6,0.13605682]
[1768844396528,0.87083745,3222.4,3221.6,0.13605682]
[1768844396722,3.4068509,3222.9,3221.6,0.13605682]
[1768844396926,1.20835094,3222.8,3221.6,0.13605682]
[1768844397126,1.20835094,3222.7,3221.6,0.13605682]
[1768844397436,1.20835094,3222.6,3221.6,0.13605682]
[1768844397734,1.20835094,3222.5,3221.6,0.13605682]
[1768844397936,0.87094281,3222.4,3221.6,0.13605682]
[1768844398130,3.4068509,3222.9,3221.6,0.13605682]
[1768844398430,1.20829657,3222.8,3221.6,0.13605682]
[1768844398629,1.20829657,3222.7,3221.6,0.13605682]
[1768844398930,1.20829657,3222.6,3221.6,0.13605682]
[1768844399228,1.20829657,3222.5,3221.6,0.13605682]
[1768844399536,0.87090289,3222.4,3221.6,0.13605682]
[1768844399835,3.4068509,3222.9,3221.6,0.13605682]
[1768844400033,1.20751046,3222.8,3221.6,0.13605682]
[1768844400232,1.20756339,3222.7,3221.6,0.13605682]
[1768844400433,1.20756339,3222.6,3221.6,0.13605682]
[1768844400630,0.87033591,3222.5,3221.6,0.13605682]
[1768844400825,0.87033591,3222.4,3221.6,0.13605682]
[1768844401031,1.735,3222.9,3221.6,0.13605682]
[1768844401234,1.20846489,3222.8,3221.6,0.13605682]
[1768844401435,1.20846489,3222.7,3221.6,0.13605682]
[1768844401636,1.20846489,3222.6,3221.6,0.13605682]
[1768844401838,0.87102359,3222.5,3221.6,0.13605682]
[1768844402037,0.87102359,3222.4,3221.6,0.13605682]
[1768844402241,1.735,3222.9,3221.6,0.13605682]
[1768844402442,1.20907173,3222.8,3221.6,0.13605682]
[1768844402738,1.20907173,3222.7,3221.6,0.13605682]
[1768844402938,1.20907173,3222.6,3221.6,0.13605682]
[1768844403141,0.8714691,3222.5,3221.6,0.13605682]
[1768844403338,0.8714691,3222.4,3221.6,0.13605682]
[1768844403537,3.4068509,3222.9,3221.6,0.13605682]
[1768844403741,1.20954463,3222.8,3221.6,0.13605682]
[1768844403936,1.20954463,3222.7,3221.6,0.13605682]
[1768844404139,1.20954463,3222.6,3221.6,0.13605682]
[1768844404337,1.6718509,3223.1,3221.6,0.13605682]
[1768844404541,1.20962162,3223.0,3221.6,0.13605682]
[1768844404739,1.20962162,3222.9,3221.6,0.13605682]
[1768844404939,0.87182392,3222.8,3221.6,0.13605682]
[1768844405143,1.739,3223.2,3221.6,0.13605682]
[1768844405338,1.20936873,3223.1,3221.6,0.13605682]
[1768844405541,1.20936873,3223.0,3221.6,0.13605682]
[1768844405742,0.87174117,3222.9,3221.6,0.13605682]
[1768844405942,0.87174117,3222.8,3221.6,0.13605682]
[1768844406145,1.739,3223.2,3221.6,0.13605682]
[1768844406344,1.209001,3223.1,3221.6,0.13605682]
[1768844406545,1.209001,3223.0,3221.6,0.13605682]
[1768844406747,0.87145865,3222.9,3221.6,0.13605682]
[1768844406945,1.739,3223.2,3221.6,0.13605682]
[1768844407151,1.20877587,3223.1,3221.6,0.13605682]
[1768844407451,1.739,3223.2,3221.6,0.13605682]
[1768844407452,1.20877587,3223.0,3221.6,0.13605682]
[1768844407751,0.87123709,3222.9,3221.6,0.13605682]
[1768844407945,1.739,3223.2,3221.6,0.13605682]
[1768844408150,1.20861007,3223.1,3221.6,0.13605682]
[1768844408447,0.87112057,3223.0,3221.7,0.13336585]
[1768844408758,0.87112057,3222.9,3221.7,0.13336585]
[1768844408954,1.739,3223.4,3221.7,0.13336585]
[1768844409145,1.20856083,3223.3,3221.7,0.13336585]
[1768844409348,1.20856083,3223.2,3221.7,0.13336585]
[1768844409641,1.20856083,3223.1,3221.7,0.13336585]
[1768844409842,0.8710859,3223.0,3221.7,0.13336585]
[1768844410042,0.8710859,3222.9,3221.7,0.13336585]
[1768844410345,1.739,3223.4,3221.7,0.13336585]
[1768844410556,1.20849087,3223.3,3221.7,0.13336585]
[1768844410853,1.20849087,3223.2,3221.7,0.13336585]
[1768844411054,1.20849087,3223.1,3221.7,0.13336585]
[1768844411356,0.87103874,3223.0,3221.7,0.13336585]
[1768844411558,1.739,3223.4,3221.7,0.13336585]
[1768844411855,1.20836084,3223.3,3221.7,0.13336585]
[1768844412058,1.20836084,3223.2,3221.7,0.13336585]
[1768844412354,1.20836084,3223.1,3221.7,0.13336585]
[1768844412656,0.87094643,3223.0,3221.7,0.13336585]
[1768844412954,1.739,3223.4,3221.7,0.13336585]
[1768844413151,1.20794867,3223.3,3221.7,0.13336585]
[1768844413455,1.20794867,3223.2,3221.7,0.13336585]
[1768844413764,1.20794867,3223.1,3221.7,0.13336585]
[1768844413956,0.87065077,3223.0,3221.7,0.13336585]
[1768844414148,1.739,3223.4,3221.7,0.13336585]
[1768844414349,1.20783148,3223.3,3221.7,0.13336585]
[1768844414547,1.20783148,3223.2,3221.7,0.13336585]
[1768844414753,0.87057899,3223.1,3221.7,0.13336585]
[1768844415053,0.87057899,3223.0,3221.8,0.13336585]
[1768844415355,1.739,3223.4,3221.9,0.13336585]
[1768844415653,1.20779043,3223.3,3221.9,0.13336585]
[1768844415855,0.87053989,3223.2,3221.9,0.13336585]
[1768844416156,1.739,3223.4,3221.9,0.13336585]
[1768844416346,1.20778666,3223.3,3221.9,0.13336585]
[1768844416554,0.87056161,3223.2,3221.9,0.13336585]
[1768844416753,1.739,3223.4,3221.9,0.13336585]
[1768844417052,1.20770875,3223.3,3221.9,0.13336585]
[1768844417252,0.87048219,3223.2,3221.9,0.13336585]
[1768844417453,1.739,3223.4,3221.9,0.13336585]
[1768844417655,1.20778545,3223.3,3221.9,0.13336585]
[1768844417859,0.8705401,3223.2,3221.9,0.13336585]
[1768844418057,1.739,3223.4,3221.9,0.13336585]
[1768844418259,0.87034407,3223.3,3221.9,0.13336585]
[1768844418450,0.87034407,3223.2,3221.9,0.13336585]
[1768844418651,1.739,3223.4,3221.9,0.13336585]
[1768844418852,0.87029005,3223.3,3221.9,0.13336585]
[1768844419055,0.87029005,3223.2,3221.9,0.13336585]
[1768844419254,1.739,3223.4,3221.9,0.13336585]
[1768844419454,1.20750692,3223.3,3221.9,0.13336585]
[1768844419655,0.87025318,3223.2,3221.9,0.13336585]
[1768844419855,1.739,3223.4,3221.9,0.13336585]
[1768844420059,1.20751392,3223.3,3221.9,0.13336585]
[1768844420363,0.87025697,3223.2,3221.9,0.13336585]
[1768844420554,1.739,3223.4,3221.9,0.13336585]
[1768844420751,1.20748386,3223.3,3221.9,0.13336585]
[1768844420956,0.87023639,3223.2,3221.9,0.13336585]
[1768844421264,1.739,3223.4,3221.9,0.13336585]
[1768844421456,1.20739046,3223.3,3221.9,0.13336585]
[1768844421656,0.8701702,3223.2,3221.9,0.13336585]
[1768844421855,1.739,3223.4,3221.9,0.13336585]
[1768844422055,1.20739908,3223.3,3221.9,0.13336585]
[1768844422252,0.87017799,3223.2,3221.9,0.13336585]
[1768844422450,1.739,3223.4,3221.9,0.13336585]
[1768844422663,1.20756219,3223.3,3221.9,0.13336585]
[1768844422863,0.87029515,3223.2,3221.9,0.13336585]
[1768844423064,1.739,3223.4,3221.9,0.13336585]
[1768844423256,1.20765394,3223.3,3221.9,0.13336585]
[1768844423454,0.87036126,3223.2,3221.9,0.13336585]
[1768844423650,1.739,3223.4,3221.9,0.13336585]
[1768844423855,1.20763118,3223.3,3221.9,0.13336585]
[1768844424056,0.87033796,3223.2,3221.9,0.13336585]
[1768844424357,1.739,3223.4,3221.9,0.13336585]
[1768844424549,1.20770423,3223.3,3221.9,0.13336585]
[1768844424853,0.87040026,3223.2,3221.9,0.13336585]
[1768844425053,1.739,3223.4,3221.9,0.13336585]
[1768844425253,1.20771489,3223.3,3221.9,0.13336585]
[1768844425459,0.87040796,3223.2,3221.9,0.13336585]
[1768844425660,1.739,3223.4,3221.9,0.13336585]
[1768844425862,1.20780842,3223.3,3221.9,0.13336585]
[1768844426054,0.87047695,3223.2,3221.9,0.13336585]
[1768844426250,1.739,3223.4,3221.9,0.13336585]
[1768844426563,1.20791516,3223.3,3221.9,0.13336585]
[1768844426764,0.87055367,3223.2,3221.9,0.13336585]
[1768844426966,0.87055367,3223.1,3221.9,0.13336585]
[1768844427262,1.739,3223.4,3221.9,0.13336585]
[1768844427463,1.20808949,3223.3,3221.9,0.13336585]
[1768844427764,0.87068346,3223.2,3221.9,0.13336585]
[1768844427964,0.87068346,3223.1,3221.9,0.13336585]
[1768844428166,1.739,3223.4,3221.9,0.13336585]
[1768844428359,1.20808714,3223.3,3221.9,0.13336585]
[1768844428560,0.87067934,3223.2,3221.9,0.13336585]
[1768844428858,0.87067934,3223.1,3221.9,0.13336585]
[1768844429058,1.739,3223.4,3221.9,0.13336585]
[1768844429258,1.20821936,3223.3,3221.9,0.13336585]
[1768844429468,0.87077216,3223.2,3221.9,0.13336585]
[1768844429668,0.87077216,3223.1,3221.9,0.13336585]
[1768844429858,1.739,3223.4,3221.9,0.13336585]
[1768844430158,1.20835106,3223.3,3221.9,0.13336585]
[1768844430457,0.87084818,3223.2,3221.9,0.13336585]
[1768844430658,0.87084818,3223.1,3221.9,0.13336585]
[1768844430854,1.739,3223.4,3221.9,0.13336585]
[1768844431058,1.20826889,3223.3,3221.9,0.13336585]
[1768844431259,0.87083519,3223.2,3221.9,0.13336585]
[1768844431460,0.87083519,3223.1,3221.9,0.13336585]
[1768844431667,1.739,3223.4,3221.9,0.13336585]
[1768844431861,1.20841747,3223.3,3221.9,0.13336585]
[1768844432063,0.87092845,3223.2,3221.9,0.13336585]
[1768844432262,0.87092845,3223.1,3221.9,0.13336585]
[1768844432463,1.739,3223.4,3221.9,0.13336585]
[1768844432664,1.20876203,3223.3,3221.9,0.13336585]
[1768844432865,1.20876203,3223.2,3221.9,0.13336585]
[1768844433066,0.87118413,3223.1,3221.9,0.13336585]
[1768844433268,1.739,3223.4,3221.9,0.13336585]
[1768844433469,1.20904443,3223.3,3221.9,0.13336585]
[1768844433770,1.20904443,3223.2,3221.9,0.13336585]
[1768844433966,0.87146067,3223.1,3221.9,0.13336585]
[1768844434166,0.87146067,3223.0,3221.9,0.13336585]
[1768844434368,1.739,3223.4,3221.9,0.13336585]
[1768844434562,1.20944684,3223.3,3221.9,0.13336585]
[1768844434761,1.20944684,3223.2,3221.9,0.13336585]
[1768844434971,0.87164543,3223.1,3221.9,0.13336585]
[1768844435170,0.87164543,3223.0,3221.9,0.13336585]
[1768844435373,1.739,3223.4,3221.9,0.13336585]
[1768844435563,1.20942333,3223.3,3221.9,0.13336585]
[1768844435762,1.20942333,3223.2,3221.9,0.13336585]
[1768844435965,0.8716289,3223.1,3221.9,0.13336585]
[1768844436169,0.8716289,3223.0,3221.9,0.13336585]
[1768844436466,1.739,3223.4,3221.9,0.13336585]
[1768844436667,1.20918055,3223.3,3221.9,0.13336585]
[1768844436869,1.20918055,3223.2,3221.9,0.13336585]
[1768844437073,0.87145411,3223.1,3221.9,0.13336585]
[1768844437271,0.87145411,3223.0,3221.9,0.13336585]
[1768844437472,1.739,3223.4,3221.9,0.13336585]
[1768844437675,1.20922679,3223.3,3221.9,0.13336585]
[1768844437874,1.20922679,3223.2,3221.9,0.13336585]
[1768844438172,0.87148766,3223.1,3221.9,0.13336585]
[1768844438373,0.87148766,3223.0,3221.9,0.13336585]
[1768844438672,1.739,3223.4,3221.9,0.13336585]
[1768844438972,1.20905227,3223.3,3221.9,0.13336585]
[1768844439173,1.20905227,3223.2,3221.9,0.13336585]
[1768844439376,0.87135984,3223.1,3221.8,0.15527]
[1768844439575,0.87135984,3223.0,3221.8,0.15527]
[1768844439877,1.739,3223.4,3221.8,0.29222812]
[1768844440068,1.20907543,3223.3,3221.8,0.29222812]
[1768844440269,1.20907543,3223.2,3221.8,0.29222812]
[1768844440470,0.87137647,3223.1,3221.8,0.29222812]
[1768844440774,0.87137647,3223.0,3221.8,0.29222812]
[1768844441073,1.739,3223.4,3221.8,0.29222812]
[1768844441276,1.20910252,3223.3,3221.8,0.29222812]
[1768844441473,1.20910252,3223.2,3221.8,0.29222812]
[1768844441771,1.20910252,3223.1,3221.8,0.29222812]
[1768844441978,0.87139553,3223.0,3221.8,0.29222812]
[1768844442178,1.739,3223.4,3221.8,0.29222812]
[1768844442369,1.20919508,3223.3,3221.8,0.29222812]
[1768844442569,1.20919508,3223.2,3221.8,0.29222812]
[1768844442765,1.20919508,3223.1,3221.8,0.29222812]
[1768844442966,0.87144551,3223.0,3221.8,0.29222812]
[1768844443171,1.739,3223.4,3221.8,0.29222812]
[1768844443379,1.20928726,3223.3,3221.8,0.29222812]
[1768844443675,1.20928726,3223.2,3221.8,0.29222812]
[1768844443874,0.87150883,3223.1,3221.9,0.13553078]
[1768844444066,0.87150883,3223.0,3221.9,0.13553078]
[1768844444268,1.89319,3223.5,3221.9,0.13553078]
[1768844444474,1.20950968,3223.4,3221.9,0.13553078]
[1768844444778,1.20950968,3223.3,3221.9,0.13553078]
[1768844444981,1.20950968,3223.2,3221.9,0.13553078]
[1768844445185,1.20957414,3223.1,3221.9,0.13553078]
[1768844445481,0.87168912,3223.0,3221.9,0.13553078]
[1768844445680,1.89319,3223.5,3221.9,0.13553078]
[1768844445878,1.20991347,3223.4,3221.9,0.13553078]
[1768844446080,1.20991347,3223.3,3221.9,0.13553078]
[1768844446379,1.20991347,3223.2,3221.9,0.13553078]
[1768844446581,1.20991424,3223.1,3221.9,0.13553078]
[1768844446782,0.8719799,3223.0,3221.9,0.13553078]
[1768844446972,1.89319,3223.5,3221.9,0.13553078]
[1768844447175,1.21008099,3223.4,3221.9,0.13553078]
[1768844447383,1.21008099,3223.3,3221.9,0.13553078]
[1768844447584,1.21008099,3223.2,3221.9,0.13553078]
[1768844447785,1.21008099,3223.1,3221.9,0.13553078]
[1768844448085,0.87210447,3223.0,3221.9,0.13553078]
[1768844448285,1.89319,3223.5,3221.9,0.13553078]
[1768844448489,1.20886072,3223.4,3221.9,0.13553078]
[1768844448793,1.20886072,3223.3,3221.9,0.13553078]
[1768844449089,1.20886072,3223.2,3221.9,0.13553078]
[1768844449289,1.20886072,3223.1,3221.9,0.13553078]
[1768844449486,0.87089058,3223.0,3221.9,0.13553078]
[1768844449788,1.89319,3223.5,3221.9,0.13553078]
[1768844449987,1.20886227,3223.4,3221.9,0.13553078]
[1768844450189,1.20886227,3223.3,3221.9,0.13553078]
[1768844450382,1.20886227,3223.2,3221.9,0.13553078]
[1768844450583,1.20886227,3223.1,3221.9,0.13553078]
[1768844450786,0.87089168,3223.0,3221.9,0.13553078]
[1768844450987,1.28508146,3223.3,3222.0,0.13553078]
[1768844451188,1.20888366,3223.2,3222.0,0.13553078]
[1768844451486,1.20888366,3223.1,3222.0,0.13553078]
[1768844451680,0.8709071,3223.0,3222.0,0.13553078]
[1768844451881,1.28508146,3223.3,3222.0,0.13553078]
[1768844452092,1.20888588,3223.2,3222.0,0.13553078]
[1768844452286,1.20888588,3223.1,3222.0,0.13553078]
[1768844452489,0.8709087,3223.0,3222.0,0.13553078]
[1768844452795,1.28508146,3223.3,3222.0,0.13553078]
[1768844453095,1.20890096,3223.2,3222.0,0.13553078]
[1768844453293,1.20890096,3223.1,3222.0,0.13553078]
[1768844453494,0.87091956,3223.0,3222.0,0.13553078]
[1768844453695,1.28508146,3223.3,3222.0,0.13553078]
[1768844453889,1.20862485,3223.2,3222.0,0.13553078]
[1768844454085,1.28508146,3223.3,3222.0,0.13553078]
[1768844454086,1.20862485,3223.1,3222.0,0.13553078]
[1768844454287,0.87072063,3223.0,3222.0,0.13553078]
[1768844454486,1.28508146,3223.3,3222.0,0.13553078]
[1768844454698,1.20863153,3223.2,3222.0,0.13553078]
[1768844454999,1.20863153,3223.1,3222.0,0.13553078]
[1768844455196,0.87072569,3223.0,3222.0,0.13553078]
[1768844455397,1.28508146,3223.3,3222.0,0.13553078]
[1768844455595,1.20864282,3223.2,3222.0,0.13553078]
[1768844455893,1.20864282,3223.1,3222.0,0.13553078]
[1768844456094,1.28508146,3223.3,3222.0,0.13553078]
[1768844456095,0.87073382,3223.0,3222.0,0.13553078]
[1768844456295,1.28508146,3223.3,3222.0,0.13553078]
[1768844456496,1.20863861,3223.2,3222.0,0.13553078]
[1768844456695,1.20863861,3223.1,3222.0,0.13553078]
[1768844456888,0.87073099,3223.0,3222.0,0.13553078]
[1768844457092,1.28508146,3223.3,3222.0,0.13553078]
[1768844457386,1.20865243,3223.2,3222.0,0.13553078]
[1768844457590,1.20865243,3223.1,3222.0,0.13553078]
[1768844457788,0.87074074,3223.0,3222.0,0.29079078]
[1768844457989,1.28508146,3223.3,3222.0,0.29079078]
[1768844458286,1.20864901,3223.2,3222.0,0.29079078]
[1768844458488,1.20864901,3223.1,3222.1,0.14414216]
[1768844458699,0.87073826,3223.0,3222.1,0.14414216]
[1768844458902,1.28508146,3223.3,3222.1,1.42922362]
[1768844459099,1.20866085,3223.2,3222.1,1.42922362]
[1768844459290,1.20866085,3223.1,3222.1,1.42922362]
[1768844459491,0.87074681,3223.0,3222.1,1.42922362]
[1768844459698,1.28508146,3223.3,3222.1,1.42922362]
[1768844459895,1.20864801,3223.2,3222.1,1.42922362]
[1768844460094,1.20864801,3223.1,3222.1,1.42922362]
[1768844460294,0.87073781,3223.0,3222.1,1.42922362]
[1768844460498,1.6718509,3223.7,3222.2,0.29939216]
[1768844460691,1.62301678,3223.6,3222.3,1.28508146]
[1768844460890,1.20873783,3223.5,3222.3,1.28508146]
[1768844461197,1.20873783,3223.4,3222.3,1.28508146]
[1768844461397,0.87080251,3223.3,3222.3,1.42922362]
[1768844461599,0.87080251,3223.2,3222.3,1.42922362]
[1768844461792,1.28508146,3223.6,3222.3,1.42922362]
[1768844462090,1.20832256,3223.5,3222.4,0.14414216]
[1768844462290,1.28508146,3223.6,3222.3,1.28508146]
[1768844462291,1.20832256,3223.4,3222.3,1.28508146]
[1768844462487,0.87050258,3223.3,3222.3,1.28508146]
[1768844462692,0.87050258,3223.2,3222.3,1.28508146]
[1768844462893,2.95980439,3223.8,3222.3,1.42922362]
[1768844463092,1.20813223,3223.7,3222.3,1.42922362]
[1768844463293,1.20813223,3223.6,3222.3,1.42922362]